fUSD/lending_fUSD_20250502
["ID","MTS","AMOUNT","RATE_DAILY","PERIOD"]
[359645197,1746214243674,-450.0,0.00019723,2]
[359645198,1746214243684,-572.12,0.00019723,2]
[359645199,1746214243694,-450.0,0.00019723,2]
[359645200,1746214243704,-606.86,0.00019723,2]
[359645201,1746214243714,-450.0,0.00019723,2]
[359645202,1746214243722,-450.0,0.00019723,2]
[359645203,1746214243731,-476.16,0.00019723,2]
[359645204,1746214243740,-450.0,0.00019723,2]
[359645205,1746214243750,-450.0,0.00019723,2]
[359645206,1746214243760,-450.0,0.00019723,2]
[359645207,1746214243770,-450.0,0.00019723,2]
[359645208,1746214243779,-450.0,0.00019723,2]
[359645209,1746214243789,-450.0,0.00019723,2]
[359645210,1746214243799,-450.0,0.00019723,2]
[359645211,1746214243810,-479.878237,0.00019723,2]
[359645212,1746214243819,-450.0,0.00019723,2]
[359645213,1746214243830,-450.0,0.00019723,2]
[359645214,1746214243840,-450.0,0.00019723,2]
[359645215,1746214243849,-3974.24,0.00019723,2]
[359645216,1746214243859,-450.0,0.00019723,2]
[359645217,1746214243869,-503.46,0.00019723,2]
[359645218,1746214243879,-450.0,0.00019723,2]
[359645219,1746214243889,-450.0,0.00019723,2]
[359645220,1746214243899,-450.0,0.00019723,2]
[359645221,1746214243910,-816.64,0.00019723,2]
[359645222,1746214243920,-597.29392894,0.00019723,2]
[359645223,1746214243930,-450.0,0.00019723,2]
[359645224,1746214243940,-450.0,0.00019723,2]
[359645225,1746214243951,-450.0,0.00019723,2]
[359645226,1746214243960,-854.26,0.00019723,2]
[359645227,1746214243970,-4583.12,0.00019723,2]
[359645228,1746214243980,-450.0,0.00019723,2]
[359645229,1746214243990,-450.0,0.00019723,2]
[359645230,1746214244000,-830.95,0.00019723,2]
[359645231,1746214244010,-1255.45,0.00019723,2]
[359645232,1746214244020,-450.0,0.00019723,2]
[359645233,1746214244031,-614.71,0.00019723,2]
[359645234,1746214244327,-4208.3,0.00019723,2]
[359645235,1746214244338,-450.0,0.00019723,2]
[359645236,1746214244347,-569.24,0.00019723,2]
[359645237,1746214244357,-988.28,0.00019723,2]
[359645238,1746214244366,-450.0,0.00019723,2]
[359645239,1746214244375,-450.0,0.00019723,2]
[359645240,1746214244384,-477.89,0.00019723,2]
[359645241,1746214244393,-524.57,0.00019723,2]
[359645242,1746214244403,-489.88,0.00019723,2]
[359645243,1746214244412,-1042.68,0.00019723,2]
[359645244,1746214244423,-491.4,0.00019723,2]
[359645245,1746214244433,-590.88,0.00019723,2]
[359645246,1746214244442,-504.41864297,0.00019723,2]
[359645247,1746214244452,-450.0,0.00019723,2]
[359645248,1746214244461,-450.0,0.00019723,2]
[359645249,1746214244471,-1612.57,0.00019723,2]
[359645250,1746214244480,-450.0,0.00019723,2]
[359645251,1746214244490,-450.0,0.00019723,2]
[359645252,1746214244499,-579.86,0.00019723,2]
[359645253,1746214244510,-4523.3,0.00019723,2]
[359645254,1746214244520,-1096.67,0.00019723,2]
[359645255,1746214244528,-450.0,0.00019723,2]
[359645256,1746214244537,-490.78,0.00019723,2]
[359645257,1746214244547,-664.89,0.00019723,2]
[359645258,1746214244556,-450.0,0.00019723,2]
[359645259,1746214244565,-237.0578191,0.00019723,2]
[359645260,1746214244575,-6327.8,0.00019723,2]
[359645261,1746214244584,-450.0,0.00019723,2]
[359645262,1746214244593,-92625.1,0.00019723,2]
[359645263,1746214244603,-450.0,0.00019723,2]
[359645264,1746214244612,-1011.4,0.00019723,2]
[359645265,1746214244622,-492.31,0.00019723,2]
[359645266,1746214244631,-471.29,0.00019723,2]
[359645267,1746214244641,-481.66,0.00019723,2]
[359645268,1746214244650,-450.0,0.00019723,2]
[359645269,1746214244660,-5389.54,0.00019723,2]
[359645270,1746214244670,-450.0,0.00019723,2]
[359645271,1746214244680,-544.86,0.00019723,2]
[359645272,1746214244689,-994.06,0.00019723,2]
[359645273,1746214244698,-450.0,0.00019723,2]
[359645274,1746214244708,-450.0,0.00019723,2]
[359645275,1746214244719,-450.0,0.00019723,2]
[359645276,1746214244728,-450.0,0.00019723,2]
[359645277,1746214244738,-29781.23,0.00019723,2]
[359645278,1746214244749,-450.0,0.00019723,2]
[359645279,1746214244758,-832.02,0.00019723,2]
[359645280,1746214244768,-450.0,0.00019723,2]
[359645281,1746214244777,-450.0,0.00019723,2]
[359645282,1746214244786,-1950.66,0.00019723,2]
[359645283,1746214244796,-450.0,0.00019723,2]
[359645284,1746214244806,-695.85,0.00019723,2]
[359645285,1746214244815,-450.0,0.00019723,2]
[359645286,1746214244825,-450.0,0.00019723,2]
[359645287,1746214244834,-573.06,0.00019723,2]
[359645288,1746214244843,-562.73,0.00019723,2]
[359645289,1746214244853,-16446.61,0.00019723,2]
[359645290,1746214244863,-300.0,0.00019723,2]
[359645291,1746214244873,-911.99,0.00019723,2]
[359645292,1746214244882,-552.68,0.00019723,2]
[359645293,1746214244892,-623.91,0.00019723,2]
[359645294,1746214244902,-450.0,0.00019723,2]
[359645295,1746214244912,-450.0,0.00019723,2]
[359645296,1746214244921,-450.0,0.00019723,2]
[359645297,1746214244931,-500.0,0.00019723,2]
[359645298,1746214244940,-500.0,0.00019723,2]
[359645299,1746214244950,-450.0,0.00019723,2]
[359645300,1746214244959,-724.09,0.00019723,2]
[359645301,1746214244969,-450.0,0.00019723,2]
[359645302,1746214244978,-450.0,0.00019723,2]
[359645303,1746214244987,-450.0,0.00019723,2]
[359645304,1746214244996,-450.0,0.00019723,2]
[359645305,1746214245006,-450.0,0.00019723,2]
[359645306,1746214245015,-2369.78,0.00019723,2]
[359645307,1746214245024,-450.0,0.00019723,2]
[359645308,1746214245034,-515.89,0.00019723,2]
[359645309,1746214245043,-450.0,0.00019723,2]
[359645310,1746214245053,-450.0,0.00019723,2]
[359645311,1746214245062,-755.37,0.00019723,2]
[359645312,1746214245071,-450.0,0.00019723,2]
[359645313,1746214245081,-450.0,0.00019723,2]
[359645314,1746214245090,-450.0,0.00019723,2]
[359645315,1746214245099,-450.0,0.00019723,2]
[359645316,1746214245109,-450.0,0.00019723,2]
[359645317,1746214245118,-450.0,0.00019723,2]
[359645318,1746214245127,-450.0,0.00019723,2]
[359645319,1746214245137,-450.0,0.00019723,2]
[359645320,1746214245146,-2514.64,0.00019723,2]
[359645321,1746214245155,-450.0,0.00019723,2]
[359645322,1746214245165,-450.0,0.00019723,2]
[359645323,1746214245175,-450.0,0.00019723,2]
[359645324,1746214245184,-450.0,0.00019723,2]
[359645325,1746214245193,-450.0,0.00019723,2]
[359645326,1746214245202,-1100.32,0.00019723,2]
[359645327,1746214245211,-746.61,0.00019723,2]
[359645328,1746214245221,-450.0,0.00019723,2]
[359645329,1746214245230,-450.0,0.00019723,2]
[359645330,1746214245240,-2761.53,0.00019723,2]
[359645331,1746214245249,-459.6,0.00019723,2]
[359645332,1746214245258,-551.31,0.00019723,2]
[359645333,1746214245267,-573.45,0.00019723,2]
[359645334,1746214245276,-450.0,0.00019723,2]
[359645335,1746214245285,-1875.58,0.00019723,2]
[359645336,1746214245294,-2296.46,0.00019723,2]
[359645337,1746214245303,-1626.19,0.00019723,2]
[359645338,1746214245313,-450.0,0.00019723,2]
[359645339,1746214245323,-450.0,0.00019723,2]
[359645340,1746214245333,-450.0,0.00019723,2]
[359645341,1746214245344,-450.0,0.00019723,2]
[359645342,1746214245353,-502.73,0.00019723,2]
[359645343,1746214245363,-739.54,0.00019723,2]
[359645344,1746214245372,-450.0,0.00019723,2]
[359645345,1746214245383,-450.0,0.00019723,2]
[359645346,1746214245393,-1148.63,0.00019723,2]
[359645347,1746214245402,-450.0,0.00019723,2]
[359645348,1746214245413,-450.0,0.00019723,2]
[359645349,1746214245426,-450.0,0.00019723,2]
[359645350,1746214245435,-301.18044399,0.00019723,2]
[359645351,1746214245445,-450.0,0.00019723,2]
[359645352,1746214245455,-450.0,0.00019723,2]
[359645353,1746214245466,-450.0,0.00019723,2]
[359645354,1746214245475,-334.33492292,0.00019724,2]
[359645355,1746214245484,-471.0796644,0.00019724,2]
[359645356,1746214245493,-470.0,0.00019724,2]
[359645357,1746214245505,-450.0,0.00019724,2]
[359645358,1746214245516,-450.0,0.00019724,2]
[359645359,1746214245525,-450.0,0.00019724,2]
[359645360,1746214245535,-450.0,0.00019724,2]
[359645362,1746214245544,-450.0,0.00019724,2]
[359645363,1746214245555,-450.0,0.00019724,2]
[359645364,1746214245564,-1122.97,0.00019724,2]
[359645365,1746214245573,-450.0,0.00019724,2]
[359645366,1746214245583,-450.0,0.00019724,2]
[359645367,1746214245592,-450.0,0.00019724,2]
[359645368,1746214245602,-450.0,0.00019724,2]
[359645369,1746214245611,-500.0,0.00019724,2]
[359645370,1746214245622,-500.0,0.00019724,2]
[359645371,1746214245631,-500.0,0.00019735,2]
[359645372,1746214245641,-500.0,0.00019739,2]
[359645373,1746214245651,-150.38905316,0.00019739,2]
[359645375,1746214245661,-500.0,0.00019739,2]
[359645376,1746214245671,-500.0,0.00019739,2]
[359645377,1746214245680,-441.0,0.00019739,2]
[359645378,1746214245690,-500.0,0.00019739,2]
[359645379,1746214245700,-500.0,0.00019739,2]
[359645380,1746214245710,-500.0,0.00019739,2]
[359645381,1746214245719,-500.0,0.00019739,2]
[359645382,1746214245729,-500.0,0.00019739,2]
[359645383,1746214245739,-155.27013893,0.00019739,2]
[359645384,1746214245749,-500.0,0.00019739,2]
[359645385,1746214245759,-150.0,0.00019739,2]
[359645386,1746214245769,-437.0,0.00019739,2]
[359645387,1746214245779,-151.09399251,0.00019739,2]
[359645388,1746214245788,-150.96083992,0.00019739,2]
[359645389,1746214245798,-150.0,0.00019739,2]
[359645390,1746214245808,-150.79274051,0.00019739,2]
[359645391,1746214245819,-154.54925283,0.00019739,2]
[359645392,1746214245828,-500.0,0.00019739,2]
[359645393,1746214245838,-500.0,0.00019739,2]
[359645394,1746214245848,-150.0,0.00019739,2]
[359645395,1746214245857,-500.0,0.00019739,2]
[359645396,1746214245867,-161.69193291,0.00019742,2]
[359645397,1746214245877,-150.0,0.00019745,2]
[359645398,1746214245886,-3438.63103094,0.00019746,2]
[359645399,1746214245896,-2427.30156377,0.00019746,2]
[359645400,1746214245905,-34333.55907963,0.0001975,2]
[359645401,1746214245915,-405.21,0.00019752,2]
[359645402,1746214245925,-150.97981124,0.00019753,2]
[359645403,1746214245935,-500.0,0.00019753,2]
[359645404,1746214245945,-150.0,0.00019753,2]
[359645405,1746214245955,-150.0,0.00019755,2]
[359645406,1746214245965,-150.0,0.0001976,2]
[359645407,1746214245975,-150.0,0.00019762,2]
[359645408,1746214245984,-150.0,0.00019765,2]
[359645409,1746214245993,-165.99958587,0.00019773,2]
[359645410,1746214246003,-500.0,0.00019773,2]
[359645411,1746214246012,-150.0,0.00019775,2]
[359645412,1746214246022,-3438.63103094,0.00019776,2]
[359645413,1746214246032,-2427.30156377,0.00019777,2]
[359645414,1746214246042,-150.0,0.00019777,2]
[359645415,1746214246053,-161.69193291,0.00019781,2]
[359645416,1746214246063,-150.0,0.00019789,2]
[359645417,1746214246072,-880.2620348,0.00019799,2]
[359645418,1746214246081,-150.0,0.00019804,2]
[359645419,1746214246090,-2427.30156377,0.00019808,2]
[359645420,1746214246100,-12500.0,0.00019812,2]
[359645421,1746214246109,-150.0,0.00019815,2]
[359645422,1746214246118,-150.0,0.00019817,2]
[359645423,1746214246128,-12500.0,0.00019821,2]
[359645424,1746214246137,-161.69193291,0.00019821,2]
[359645425,1746214246146,-150.0,0.00019821,2]
[359645426,1746214246155,-150.0,0.00019823,2]
[359645427,1746214246164,-12500.0,0.0001983,2]
[359645428,1746214246173,-150.0,0.00019831,2]
[359645429,1746214246183,-150.0,0.00019832,2]
[359645430,1746214246192,-2288.34463862,0.00019833,2]
[359645431,1746214246201,-203.244,0.00019838,2]
[359645432,1746214246211,-12500.0,0.00019838,2]
[359645433,1746214246220,-2427.30156377,0.00019838,2]
[359645434,1746214246229,-500.0,0.0001984,2]
[359645435,1746214246238,-2000.0,0.0001984,2]
[359645436,1746214246247,-200.0,0.0001984,2]
[359645437,1746214246256,-150.0,0.0001984,2]
[359645438,1746214246265,-150.0,0.00019846,2]
[359645439,1746214246274,-12500.0,0.00019847,2]
[359645440,1746214246283,-150.0,0.00019848,2]
[359645441,1746214246293,-151.04397921,0.0001985,2]
[359645442,1746214246301,-12500.0,0.00019856,2]
[359645443,1746214246311,-161.69193291,0.0001986,2]
[359645444,1746214246321,-2863.534,0.00019861,2]
[359645445,1746214246330,-12500.0,0.00019865,2]
[359645446,1746214246339,-150.0,0.00019865,2]
[359645447,1746214246348,-1112.70545765,0.00019866,2]
[359645448,1746214246357,-150.0,0.00019868,2]
[359645449,1746214246366,-150.0,0.00019869,2]
[359645450,1746214246375,-150.0,0.00019869,2]
[359645451,1746214246384,-2427.30156377,0.00019869,2]
[359645452,1746214246394,-12500.0,0.00019874,2]
[359645453,1746214246403,-151.0,0.00019876,2]
[359645454,1746214246413,-151.0,0.00019877,2]
[359645455,1746214246423,-151.0,0.00019878,2]
[359645456,1746214246436,-1000.0,0.00019879,2]
[359645457,1746214246446,-151.0,0.00019879,2]
[359645458,1746214246456,-151.0,0.0001988,2]
[359645459,1746214246466,-150.0,0.00019881,2]
[359645460,1746214246475,-12500.0,0.00019882,2]
[359645461,1746214246485,-12500.0,0.00019882,2]
[359645462,1746214246494,-1205.87469952,0.00019888,2]
[359645463,1746214246503,-150.0,0.0001989,2]
[359645464,1746214246514,-500.0,0.0001989,2]
[359645465,1746214246524,-12500.0,0.00019891,2]
[359645466,1746214246534,-12500.0,0.00019891,2]
[359645467,1746214246543,-150.0,0.00019895,2]
[359645468,1746214246552,-168.4286354,0.00019898,2]
[359645469,1746214246562,-156.25232719,0.000199,2]
[359645470,1746214246571,-12500.0,0.000199,2]
[359645471,1746214246580,-593.72698697,0.000199,2]
[359645472,1746214246590,-12500.0,0.000199,2]
[359645473,1746214246600,-2743.91594593,0.000199,2]
[359645474,1746214246610,-18376.30093517,0.000199,2]
[359645475,1746214246681,-495.71971184,0.000199,2]
[359645476,1746214246691,-3014.72115016,0.000199,3]
[359645477,1746214246701,-161.69193291,0.000199,2]
[359645478,1746214246710,-1811.95946077,0.000199,2]
[359645479,1746214246719,-171.70756229,0.000199,3]
[359645480,1746214246728,-39636.00739605,0.000199,2]
[359645481,1746214246738,-2427.30156377,0.000199,2]
[359645482,1746214246749,-156.63736674,0.000199,2]
[359645483,1746214246759,-150.0,0.00019902,2]
[359645484,1746214246769,-2369.11016152,0.00019903,2]
[359645485,1746214246778,-150.0,0.00019912,2]
[359645486,1746214246787,-282.0,0.00019918,2]
[359645487,1746214246796,-150.0,0.00019922,2]
[359645488,1746214246806,-150.0,0.00019923,2]
[359645489,1746214246815,-150.0,0.00019924,2]
[359645490,1746214246825,-150.0,0.00019934,2]
[359645491,1746214246834,-150.0,0.00019937,2]
[359645492,1746214246843,-150.0,0.00019943,2]
[359645493,1746214246853,-151.0,0.00019943,2]
[359645494,1746214246862,-150.0,0.00019944,2]
[359645495,1746214246872,-914.0,0.00019949,2]
[359645496,1746214246882,-581.0,0.00019949,2]
[359645497,1746214246891,-548.0,0.00019949,2]
[359645498,1746214246900,-413.779,0.00019949,2]
[359645499,1746214246909,-924.0,0.00019949,2]
[359645500,1746214246919,-1391.397,0.00019949,2]
[359645501,1746214246929,-4006.0,0.00019949,2]
[359645502,1746214246939,-6753.0,0.00019949,2]
[359645503,1746214246948,-150.0,0.0001995,2]
[359645504,1746214246958,-207.4,0.00019953,2]
[359645505,1746214246968,-151.0,0.00019954,2]
[359645506,1746214246977,-151.0,0.00019954,2]
[359645507,1746214246986,-668.65185757,0.00019954,2]
[359645508,1746214246995,-151.0,0.00019954,2]
[359645509,1746214247004,-150.0,0.00019959,2]
[359645510,1746214247014,-150.0,0.00019961,2]
[359645511,1746214247023,-150.0,0.00019964,2]
[359645512,1746214247033,-514.0,0.0001997,2]
[359645513,1746214247043,-625.48283374,0.00019973,2]
[359645514,1746214247052,-24257.0,0.00019973,2]
[359645515,1746214247061,-309.0,0.00019973,2]
[359645516,1746214247070,-505.12152298,0.00019973,2]
[359645517,1746214247080,-500.0,0.00019973,2]
[359645518,1746214247089,-500.0,0.00019973,2]
[359645519,1746214247097,-162.40954813,0.00019973,2]
[359645520,1746214247107,-501.47327578,0.00019973,2]
[359645521,1746214247116,-368.87036061,0.00019973,2]
[359645522,1746214247125,-500.0,0.00019973,2]
[359645523,1746214247134,-500.0,0.00019973,2]
[359645524,1746214247144,-500.0,0.00019973,2]
[359645525,1746214247153,-500.0,0.00019973,2]
[359645526,1746214247163,-500.0,0.00019973,2]
[359645527,1746214247172,-500.0,0.00019973,2]
[359645528,1746214247181,-505.11388319,0.00019973,2]
[359645529,1746214247190,-243.25265261,0.00019973,2]
[359645530,1746214247199,-501.66333751,0.00019973,2]
[359645531,1746214247209,-302.52572163,0.00019973,2]
[359645532,1746214247218,-500.0,0.00019973,2]
[359645533,1746214247227,-538.7932649,0.00019973,2]
[359645534,1746214247237,-500.0,0.00019973,2]
[359645535,1746214247247,-500.0,0.00019973,2]
[359645536,1746214247256,-152.56461415,0.00019973,2]
[359645537,1746214247266,-500.0,0.00019973,2]
[359645538,1746214247275,-500.0,0.00019973,2]
[359645539,1746214247284,-671.73313163,0.00019976,2]
[359645540,1746214247294,-375.89281427,0.0001998,2]
[359645541,1746214247304,-1474.0,0.00019986,2]
[359645542,1746214247312,-2755.0,0.00019986,2]
[359645543,1746214247322,-20158.2467108,0.00019986,2]
[359645544,1746214247331,-125077.6440609,0.00019986,2]
[359645545,1746214247341,-204.08557785,0.00019986,2]
[359645546,1746214247350,-4172.7453892,0.00019986,2]
[359645547,1746214247359,-9053.3502225,0.00019986,2]
[359645548,1746214247368,-120898.1391797,0.00019986,2]
[359645549,1746214247378,-5070.0496444,0.00019986,2]
[359645550,1746214247387,-671.73313163,0.0001999,2]
[359645551,1746214247397,-671.73313163,0.0001999,2]
[359645552,1746214247407,-569.289929,0.00019996,2]
[359645553,1746214247416,-450.0,0.00019996,2]
[359645554,1746214247428,-450.0,0.00019996,2]
[359645555,1746214247438,-450.0,0.00019996,2]
[359645556,1746214247448,-682.117239,0.00019996,2]
[359645557,1746214247458,-215.66564025,0.00019996,2]
[359645558,1746214247469,-450.0,0.00019996,2]
[359645559,1746214247478,-450.0,0.00019996,2]
[359645560,1746214247487,-450.0,0.00019996,2]
[359645561,1746214247496,-815.78,0.00019996,2]
[359645562,1746214247507,-8569.01,0.00019996,2]
[359645563,1746214247517,-450.0,0.00019996,2]
[359645564,1746214247527,-450.0,0.00019996,2]
[359645565,1746214247536,-450.0,0.00019996,2]
[359645566,1746214247545,-450.0,0.00019996,2]
[359645567,1746214247554,-477.38,0.00019996,2]
[359645568,1746214247563,-450.0,0.00019996,2]
[359645569,1746214247572,-450.0,0.00019996,2]
[359645570,1746214247581,-450.0,0.00019996,2]
[359645571,1746214247590,-450.0,0.00019996,2]
[359645572,1746214247599,-450.0,0.00019996,2]
[359645573,1746214247609,-450.0,0.00019996,2]
[359645574,1746214247618,-473.06,0.00019996,2]
[359645575,1746214247628,-450.0,0.00019996,2]
[359645576,1746214247638,-450.0,0.00019996,2]
[359645577,1746214247648,-450.0,0.00019996,2]
[359645578,1746214247658,-450.0,0.00019996,2]
[359645579,1746214247667,-450.0,0.00019996,2]
[359645580,1746214247677,-627.91,0.00019996,2]
[359645581,1746214247687,-450.0,0.00019996,2]
[359645582,1746214247696,-460.85,0.00019996,2]
[359645583,1746214247705,-450.0,0.00019996,2]
[359645584,1746214247715,-450.0,0.00019996,2]
[359645585,1746214247724,-450.0,0.00019996,2]
[359645586,1746214247734,-116421.52,0.00019996,2]
[359645587,1746214247743,-496.89,0.00019996,2]
[359645588,1746214247753,-450.0,0.00019996,2]
[359645589,1746214247762,-450.0,0.00019996,2]
[359645590,1746214247772,-450.0,0.00019996,2]
[359645591,1746214247781,-318.17590123,0.00019996,2]
[359645592,1746214247791,-484.04,0.00019996,2]
[359645593,1746214247801,-1287.6,0.00019996,2]
[359645594,1746214247811,-568.74,0.00019996,2]
[359645595,1746214247821,-510.33,0.00019996,2]
[359645596,1746214247830,-827.16,0.00019996,2]
[359645597,1746214247840,-450.0,0.00019996,2]
[359645598,1746214247850,-1220.23,0.00019996,2]
[359645599,1746214247860,-450.0,0.00019996,2]
[359645600,1746214247870,-5435.76,0.00019996,2]
[359645601,1746214247879,-450.0,0.00019996,2]
[359645602,1746214247888,-450.0,0.00019996,2]
[359645603,1746214247897,-586.26,0.00019996,2]
[359645604,1746214247907,-450.0,0.00019996,2]
[359645605,1746214247916,-450.0,0.00019996,2]
[359645606,1746214247926,-450.0,0.00019996,2]
[359645607,1746214247935,-450.0,0.00019996,2]
[359645608,1746214247945,-450.0,0.00019996,2]
[359645609,1746214247956,-509.47,0.00019996,2]
[359645610,1746214247965,-450.0,0.00019996,2]
[359645611,1746214247974,-502.92,0.00019996,2]
[359645612,1746214247984,-450.0,0.00019996,2]
[359645613,1746214247993,-450.0,0.00019996,2]
[359645614,1746214248002,-450.0,0.00019996,2]
[359645615,1746214248012,-543.46,0.00019996,2]
[359645616,1746214248021,-450.0,0.00019996,2]
[359645617,1746214248031,-549.93,0.00019996,2]
[359645618,1746214248040,-450.0,0.00019996,2]
[359645619,1746214248050,-3368.23,0.00019996,2]
[359645620,1746214248060,-450.0,0.00019996,2]
[359645621,1746214248070,-1884.48,0.00019996,2]
[359645622,1746214248079,-1080.62,0.00019996,2]
[359645623,1746214248088,-450.0,0.00019996,2]
[359645624,1746214248098,-450.0,0.00019997,2]
[359645625,1746214248108,-450.0,0.00019997,2]
[359645626,1746214248117,-450.0,0.00019997,2]
[359645627,1746214248126,-364.38940204,0.00019997,2]
[359645628,1746214248135,-450.0,0.00019997,2]
[359645629,1746214248145,-450.0,0.00019997,2]
[359645630,1746214248154,-450.0,0.00019997,2]
[359645631,1746214248164,-450.0,0.00019997,2]
[359645632,1746214248174,-450.0,0.00019997,2]
[359645633,1746214248183,-450.0,0.00019997,2]
[359645634,1746214248193,-450.0,0.00019997,2]
[359645635,1746214248203,-450.0,0.00019997,2]
[359645636,1746214248213,-450.0,0.00019997,2]
[359645637,1746214248223,-450.0,0.00019997,2]
[359645638,1746214248234,-450.0,0.00019997,2]
[359645639,1746214248244,-450.0,0.00019997,2]
[359645640,1746214248254,-450.0,0.00019997,2]
[359645641,1746214248264,-450.0,0.00019997,2]
[359645642,1746214248274,-450.0,0.00019997,2]
[359645643,1746214248284,-450.0,0.00019997,2]
[359645644,1746214248294,-450.0,0.00019997,2]
[359645645,1746214248303,-450.0,0.00019997,2]
[359645646,1746214248313,-949.19,0.00019997,2]
[359645647,1746214248322,-450.0,0.00019997,2]
[359645648,1746214248332,-450.0,0.00019997,2]
[359645649,1746214248341,-450.0,0.00019997,2]
[359645650,1746214248350,-450.0,0.00019997,2]
[359645651,1746214248360,-450.0,0.00019997,2]
[359645652,1746214248370,-450.0,0.00019997,2]
[359645653,1746214248380,-450.0,0.00019997,2]
[359645654,1746214248390,-450.0,0.00019997,2]
[359645655,1746214248399,-543.65,0.00019997,2]
[359645656,1746214248408,-257.17479443,0.00019997,2]
[359645657,1746214248418,-186.75795249,0.00019997,2]
[359645658,1746214248430,-701.9,0.00019997,2]
[359645659,1746214248439,-450.0,0.00019997,2]
[359645660,1746214248448,-450.0,0.00019997,2]
[359645661,1746214248457,-450.0,0.00019997,2]
[359645662,1746214248467,-662.63,0.00019997,2]
[359645663,1746214248478,-450.0,0.00019997,2]
[359645664,1746214248487,-450.0,0.00019997,2]
[359645665,1746214248497,-464.07,0.00019997,2]
[359645666,1746214248507,-450.0,0.00019997,2]
[359645667,1746214248517,-450.0,0.00019997,2]
[359645668,1746214248527,-450.0,0.00019997,2]
[359645669,1746214248538,-450.0,0.00019997,2]
[359645670,1746214248548,-450.0,0.00019997,2]
[359645671,1746214248558,-450.0,0.00019997,2]
[359645672,1746214248568,-450.0,0.00019997,2]
[359645673,1746214248578,-530.44,0.00019997,2]
[359645674,1746214248587,-450.0,0.00019997,2]
[359645675,1746214248597,-187.04031648,0.00019997,2]
[359645676,1746214248607,-450.0,0.00019997,2]
[359645677,1746214248616,-450.0,0.00019997,2]
[359645678,1746214248625,-450.0,0.00019997,2]
[359645679,1746214248635,-744.58,0.00019997,2]
[359645680,1746214248644,-450.0,0.00019997,2]
[359645681,1746214248654,-634.06,0.00019997,2]
[359645682,1746214248664,-450.0,0.00019997,2]
[359645683,1746214248673,-450.0,0.00019997,2]
[359645684,1746214248682,-450.0,0.00019997,2]
[359645685,1746214248691,-508.53,0.00019997,2]
[359645686,1746214248701,-450.0,0.00019997,2]
[359645687,1746214248710,-450.0,0.00019997,2]
[359645688,1746214248720,-450.0,0.00019997,2]
[359645689,1746214248730,-544.78,0.00019997,2]
[359645690,1746214248739,-170.87322706,0.00019997,2]
[359645691,1746214248749,-450.0,0.00019997,2]
[359645692,1746214248758,-450.0,0.00019997,2]
[359645693,1746214248768,-450.0,0.00019997,2]
[359645694,1746214248778,-991.91,0.00019997,2]
[359645695,1746214248787,-450.0,0.00019997,2]
[359645696,1746214248796,-320.94152436,0.00019997,2]
[359645697,1746214248804,-450.0,0.00019997,2]
[359645698,1746214248814,-450.0,0.00019997,2]